[Event "Titled Tuesday Blitz August 3 2021"]
[White "Jobava, Baadur"]
[Black "Pinheiro, Iung Alicio de O."]
[WhiteFideId "13601520"]
[BlackFideId "2104350"]
[WhiteElo "2892"]
[BlackElo "2533"]
[Result "1-0"]
[Round "04"]
[TimeControl "180+1"]
[Date "2021.08.03"]
[WhiteClock "0:01:35"]
[BlackClock "0:00:02"]

1. e4 {[%clk 0:03:00]}  c6 {[%clk 0:02:59]} 2. c4 {[%clk 0:03:00]}  e5 {[%clk 0:02:58]} 3. Nc3 {[%clk 0:02:59]}  d6 {[%clk 0:02:58]} 4. Nf3 {[%clk 0:03:00]}  Nf6 {[%clk 0:02:57]} 5. d4 {[%clk 0:03:00]}  Nbd7 {[%clk 0:02:57]} 6. Be2 {[%clk 0:03:00]}  Be7 {[%clk 0:02:57]} 7. O-O {[%clk 0:03:01]}  O-O {[%clk 0:02:57]} 8. Re1 {[%clk 0:03:01]}  a6 {[%clk 0:02:57]} 9. Bf1 {[%clk 0:03:02]}  b5 {[%clk 0:02:56]} 10. c5 {[%clk 0:03:02]}  Re8 {[%clk 0:02:40]} 11. h3 {[%clk 0:02:56]}  Qc7 {[%clk 0:02:31]} 12. cxd6 {[%clk 0:02:54]}  Bxd6 {[%clk 0:02:30]} 13. Bg5 {[%clk 0:02:53]}  h6 {[%clk 0:02:23]} 14. Bxf6 {[%clk 0:02:51]}  Nxf6 {[%clk 0:02:22]} 15. Rc1 {[%clk 0:02:52]}  Bb7 {[%clk 0:02:17]} 16. d5 {[%clk 0:02:44]}  c5 {[%clk 0:02:15]} 17. a4 {[%clk 0:02:41]}  b4 {[%clk 0:02:06]} 18. Nb1 {[%clk 0:02:40]}  a5 {[%clk 0:02:05]} 19. Nbd2 {[%clk 0:02:40]}  Nd7 {[%clk 0:01:59]} 20. Bb5 {[%clk 0:02:39]}  Ba6 {[%clk 0:01:57]} 21. Bxa6 {[%clk 0:02:38]}  Rxa6 {[%clk 0:01:56]} 22. Nc4 {[%clk 0:02:39]}  Nb6 {[%clk 0:01:56]} 23. Nxb6 {[%clk 0:02:38]}  Rxb6 {[%clk 0:01:52]} 24. Nd2 {[%clk 0:02:39]}  b3 {[%clk 0:01:52]} 25. Nc4 {[%clk 0:02:40]}  Rb4 {[%clk 0:01:51]} 26. Re3 {[%clk 0:02:38]}  Reb8 {[%clk 0:01:49]} 27. Rg3 {[%clk 0:02:30]}  Rxa4 {[%clk 0:01:35]} 28. Qh5 {[%clk 0:02:29]}  Kh8 {[%clk 0:01:17]} 29. Nxd6 {[%clk 0:02:25]}  Qxd6 {[%clk 0:01:18]} 30. Qxf7 {[%clk 0:02:25]}  Rg8 {[%clk 0:01:18]} 31. f3 {[%clk 0:02:15]}  c4 {[%clk 0:01:16]} 32. Rg6 {[%clk 0:02:11]}  Qc5+ {[%clk 0:01:13]} 33. Kh2 {[%clk 0:02:11]}  Ra2 {[%clk 0:01:05]} 34. d6 {[%clk 0:02:07]}  Rxb2 {[%clk 0:01:03]} 35. d7 {[%clk 0:02:07]}  Rd2 {[%clk 0:01:03]} 36. Rxc4 {[%clk 0:02:03]}  Qf8 {[%clk 0:00:54]} 37. Qxf8 {[%clk 0:01:51]}  Rxf8 {[%clk 0:00:55]} 38. Rb6 {[%clk 0:01:51]}  Rxd7 {[%clk 0:00:50]} 39. Rxb3 {[%clk 0:01:51]}  Ra7 {[%clk 0:00:44]} 40. Ra3 {[%clk 0:01:50]}  Re8 {[%clk 0:00:27]} 41. Raa4 {[%clk 0:01:48]}  Ra6 {[%clk 0:00:16]} 42. Rc5 {[%clk 0:01:48]}  Rb8 {[%clk 0:00:06]} 43. Rcxa5 {[%clk 0:01:44]}  Rxa5 {[%clk 0:00:04]} 44. Rxa5 {[%clk 0:01:44]}  Re8 {[%clk 0:00:05]} 45. h4 {[%clk 0:01:45]}  h5 {[%clk 0:00:05]} 46. Kg3 {[%clk 0:01:44]}  Kh7 {[%clk 0:00:05]} 47. Ra6 {[%clk 0:01:45]}  g6 {[%clk 0:00:05]} 48. Ra7+ {[%clk 0:01:42]}  Kh6 {[%clk 0:00:05]} 49. Ra5 {[%clk 0:01:43]}  Re7 {[%clk 0:00:05]} 50. Rd5 {[%clk 0:01:44]}  Re8 {[%clk 0:00:05]} 51. Rd7 {[%clk 0:01:43]}  Re6 {[%clk 0:00:06]} 52. f4 {[%clk 0:01:42]}  exf4+ {[%clk 0:00:06]} 53. Kxf4 {[%clk 0:01:42]}  Rf6+ {[%clk 0:00:05]} 54. Ke3 {[%clk 0:01:43]}  Re6 {[%clk 0:00:03]} 55. Kd4 {[%clk 0:01:41]}  Ra6 {[%clk 0:00:03]} 56. e5 {[%clk 0:01:36]}  Ra4+ {[%clk 0:00:03]} 57. Kd5 {[%clk 0:01:37]}  Ra5+ {[%clk 0:00:04]} 58. Kd6 {[%clk 0:01:37]}  Ra6+ {[%clk 0:00:03]} 59. Ke7 {[%clk 0:01:37]}  Kg7 {[%clk 0:00:04]} 60. e6 {[%clk 0:01:37]}  Ra8 {[%clk 0:00:03]} 61. g3 {[%clk 0:01:37]}  Rb8 {[%clk 0:00:02]} 62. Ra7 {[%clk 0:01:35]} 1-0


[Site "https://www.chess.com"]

[Event "Titled Tuesday Blitz August 3 2021"]
[White "Jovic, Stanoje"]
[Black "Hansen, Sune Berg"]
[WhiteFideId "905020"]
[BlackFideId "1400266"]
[WhiteElo "2286"]
[BlackElo "2651"]
[Result "0-1"]
[Round "04"]
[TimeControl "180+1"]
[Date "2021.08.03"]
[WhiteClock "0:00:48"]
[BlackClock "0:00:53"]

1. c4 {[%clk 0:03:00]}  e5 {[%clk 0:02:59]} 2. g3 {[%clk 0:03:00]}  Nf6 {[%clk 0:02:59]} 3. Bg2 {[%clk 0:03:01]}  d5 {[%clk 0:02:59]} 4. cxd5 {[%clk 0:03:00]}  Nxd5 {[%clk 0:03:00]} 5. Nf3 {[%clk 0:02:58]}  Nc6 {[%clk 0:02:59]} 6. O-O {[%clk 0:02:58]}  Nb6 {[%clk 0:02:59]} 7. b3 {[%clk 0:02:57]}  Bd6 {[%clk 0:02:58]} 8. Bb2 {[%clk 0:02:56]}  O-O {[%clk 0:02:57]} 9. d4 {[%clk 0:02:56]}  e4 {[%clk 0:02:57]} 10. Nfd2 {[%clk 0:02:54]}  f5 {[%clk 0:02:56]} 11. Nc4 {[%clk 0:02:47]}  Nd5 {[%clk 0:02:38]} 12. Nc3 {[%clk 0:02:44]}  Be6 {[%clk 0:02:36]} 13. Nxd5 {[%clk 0:02:41]}  Bxd5 {[%clk 0:02:35]} 14. Ne3 {[%clk 0:02:41]}  Ne7 {[%clk 0:02:35]} 15. Qc2 {[%clk 0:02:17]}  c6 {[%clk 0:02:34]} 16. f3 {[%clk 0:02:06]}  exf3 {[%clk 0:02:33]} 17. exf3 {[%clk 0:02:06]}  f4 {[%clk 0:02:32]} 18. Nxd5 {[%clk 0:01:48]}  Nxd5 {[%clk 0:02:30]} 19. g4 {[%clk 0:01:45]}  Ne3 {[%clk 0:02:29]} 20. Qd3 {[%clk 0:01:38]}  Nxf1 {[%clk 0:02:29]} 21. Bxf1 {[%clk 0:01:34]}  Qe7 {[%clk 0:02:23]} 22. d5 {[%clk 0:01:26]}  c5 {[%clk 0:02:23]} 23. Bc3 {[%clk 0:01:13]}  Rae8 {[%clk 0:02:05]} 24. Re1 {[%clk 0:01:10]}  Qh4 {[%clk 0:02:04]} 25. Re6 {[%clk 0:01:06]}  Rxe6 {[%clk 0:01:46]} 26. dxe6 {[%clk 0:01:05]}  Rd8 {[%clk 0:01:40]} 27. Qe4 {[%clk 0:01:04]}  Qe7 {[%clk 0:01:35]} 28. Bd3 {[%clk 0:01:01]}  g6 {[%clk 0:01:29]} 29. Bb5 {[%clk 0:00:59]}  Bc7 {[%clk 0:01:10]} 30. Bd7 {[%clk 0:00:55]}  Rxd7 {[%clk 0:01:05]} 31. exd7 {[%clk 0:00:55]}  Qxd7 {[%clk 0:00:59]} 32. Qc4+ {[%clk 0:00:48]}  Qf7 {[%clk 0:00:53]} 33. Qxc5 {[%clk 0:00:48]}  Bb6 {[%clk 0:00:53]} 0-1


[Site "https://www.chess.com"]

[Event "Titled Tuesday Blitz August 3 2021"]
[White "Khoroshev, Nikita"]
[Black "Andrews, Todd"]
[WhiteFideId "14200287"]
[BlackFideId "2012456"]
[WhiteElo "2328"]
[BlackElo "2421"]
[Result "0-1"]
[Round "04"]
[TimeControl "180+1"]
[Date "2021.08.03"]
[WhiteClock "0:00:21"]
[BlackClock "0:00:09"]

1. d4 {[%clk 0:03:00]}  Nf6 {[%clk 0:02:59]} 2. c4 {[%clk 0:03:00]}  c5 {[%clk 0:02:59]} 3. d5 {[%clk 0:02:58]}  b5 {[%clk 0:03:00]} 4. a4 {[%clk 0:02:59]}  bxc4 {[%clk 0:02:58]} 5. Nc3 {[%clk 0:02:58]}  d6 {[%clk 0:02:55]} 6. Nf3 {[%clk 0:02:58]}  g6 {[%clk 0:02:54]} 7. e4 {[%clk 0:02:59]}  Ba6 {[%clk 0:02:54]} 8. Nd2 {[%clk 0:02:59]}  Bg7 {[%clk 0:02:54]} 9. Bxc4 {[%clk 0:02:58]}  O-O {[%clk 0:02:53]} 10. O-O {[%clk 0:02:58]}  Nfd7 {[%clk 0:02:49]} 11. Qe2 {[%clk 0:02:56]}  Bxc4 {[%clk 0:02:48]} 12. Nxc4 {[%clk 0:02:57]}  Nb6 {[%clk 0:02:21]} 13. Ne3 {[%clk 0:02:55]}  a5 {[%clk 0:02:14]} 14. Bd2 {[%clk 0:02:55]}  Na6 {[%clk 0:02:13]} 15. b3 {[%clk 0:02:54]}  Nb4 {[%clk 0:02:14]} 16. Rac1 {[%clk 0:02:53]}  e6 {[%clk 0:02:08]} 17. dxe6 {[%clk 0:02:50]}  fxe6 {[%clk 0:02:08]} 18. Nb5 {[%clk 0:02:48]}  Rc8 {[%clk 0:01:53]} 19. Rfd1 {[%clk 0:02:39]}  Rc6 {[%clk 0:01:22]} 20. Bxb4 {[%clk 0:01:59]}  axb4 {[%clk 0:01:22]} 21. Qg4 {[%clk 0:01:55]}  d5 {[%clk 0:01:13]} 22. a5 {[%clk 0:01:52]}  Nd7 {[%clk 0:00:56]} 23. exd5 {[%clk 0:01:49]}  exd5 {[%clk 0:00:51]} 24. Rxd5 {[%clk 0:01:44]}  Qf6 {[%clk 0:00:45]} 25. Rf1 {[%clk 0:01:12]}  Ne5 {[%clk 0:00:44]} 26. Qe4 {[%clk 0:01:12]}  Re6 {[%clk 0:00:37]} 27. Nc7 {[%clk 0:00:59]}  Re7 {[%clk 0:00:37]} 28. Rxc5 {[%clk 0:00:58]}  Kh8 {[%clk 0:00:31]} 29. Ncd5 {[%clk 0:00:56]}  Qd6 {[%clk 0:00:21]} 30. Nxe7 {[%clk 0:00:53]}  Qxc5 {[%clk 0:00:20]} 31. N7d5 {[%clk 0:00:53]}  Qxa5 {[%clk 0:00:20]} 32. Qxb4 {[%clk 0:00:53]}  Qa2 {[%clk 0:00:18]} 33. Qb7 {[%clk 0:00:47]}  Nd3 {[%clk 0:00:18]} 34. Ng4 {[%clk 0:00:43]}  Qe2 {[%clk 0:00:15]} 35. Nde3 {[%clk 0:00:41]}  h5 {[%clk 0:00:13]} 36. Qe4 {[%clk 0:00:31]}  hxg4 {[%clk 0:00:13]} 37. Qxg4 {[%clk 0:00:29]}  Qxg4 {[%clk 0:00:13]} 38. Nxg4 {[%clk 0:00:30]}  Bd4 {[%clk 0:00:12]} 39. g3 {[%clk 0:00:24]}  Ne5 {[%clk 0:00:07]} 40. Nxe5 {[%clk 0:00:23]}  Bxe5 {[%clk 0:00:08]} 41. Kg2 {[%clk 0:00:21]}  Bd4 {[%clk 0:00:08]} 42. f4 {[%clk 0:00:21]}  Rb8 {[%clk 0:00:09]} 0-1


[Site "https://www.chess.com"]

[Event "Titled Tuesday Blitz August 3 2021"]
[White "Korchmar, Vasiliy"]
[Black "Najdin, Danil"]
[WhiteFideId "24131750"]
[BlackFideId "4172426"]
[WhiteElo "2370"]
[BlackElo "2193"]
[Result "1-0"]
[Round "04"]
[TimeControl "180+1"]
[Date "2021.08.03"]
[WhiteClock "0:00:09"]
[BlackClock "0:00:01"]

1. e4 {[%clk 0:03:00]}  e5 {[%clk 0:02:59]} 2. Nf3 {[%clk 0:02:59]}  Nc6 {[%clk 0:02:59]} 3. Nc3 {[%clk 0:02:57]}  Nf6 {[%clk 0:02:59]} 4. Bb5 {[%clk 0:02:54]}  Bb4 {[%clk 0:02:57]} 5. O-O {[%clk 0:02:52]}  O-O {[%clk 0:02:56]} 6. d3 {[%clk 0:02:52]}  Bxc3 {[%clk 0:02:53]} 7. bxc3 {[%clk 0:02:52]}  d6 {[%clk 0:02:54]} 8. Bg5 {[%clk 0:02:52]}  Ne7 {[%clk 0:02:45]} 9. Nh4 {[%clk 0:02:48]}  c6 {[%clk 0:02:45]} 10. Bc4 {[%clk 0:02:48]}  d5 {[%clk 0:02:45]} 11. Bb3 {[%clk 0:02:48]}  Qd6 {[%clk 0:02:46]} 12. Qf3 {[%clk 0:02:47]}  a5 {[%clk 0:02:21]} 13. a4 {[%clk 0:02:45]}  h6 {[%clk 0:02:11]} 14. Bc1 {[%clk 0:02:22]}  g5 {[%clk 0:01:38]} 15. Ba3 {[%clk 0:02:04]}  c5 {[%clk 0:01:39]} 16. Nf5 {[%clk 0:01:27]}  Nxf5 {[%clk 0:01:38]} 17. exf5 {[%clk 0:01:28]}  b6 {[%clk 0:01:36]} 18. Rfe1 {[%clk 0:01:17]}  Re8 {[%clk 0:01:22]} 19. h4 {[%clk 0:01:13]}  g4 {[%clk 0:01:16]} 20. Qg3 {[%clk 0:01:13]}  Bxf5 {[%clk 0:01:14]} 21. d4 {[%clk 0:01:13]}  Ne4 {[%clk 0:01:12]} 22. Qe3 {[%clk 0:01:09]}  exd4 {[%clk 0:01:00]} 23. cxd4 {[%clk 0:01:08]}  Qf6 {[%clk 0:00:35]} 24. Bxd5 {[%clk 0:00:58]}  Rad8 {[%clk 0:00:32]} 25. c4 {[%clk 0:00:48]}  Qxh4 {[%clk 0:00:19]} 26. dxc5 {[%clk 0:00:44]}  g3 {[%clk 0:00:17]} 27. fxg3 {[%clk 0:00:39]}  Nxg3 {[%clk 0:00:17]} 28. Qf3 {[%clk 0:00:24]}  Qd4+ {[%clk 0:00:12]} 29. Kh2 {[%clk 0:00:18]}  Qh4+ {[%clk 0:00:12]} 30. Kg1 {[%clk 0:00:19]}  Qd4+ {[%clk 0:00:12]} 31. Qf2 {[%clk 0:00:19]}  bxc5 {[%clk 0:00:12]} 32. Bxc5 {[%clk 0:00:18]}  Qxf2+ {[%clk 0:00:10]} 33. Bxf2 {[%clk 0:00:19]}  Ne2+ {[%clk 0:00:06]} 34. Kh2 {[%clk 0:00:13]}  Nf4 {[%clk 0:00:06]} 35. Bb6 {[%clk 0:00:11]}  Rxe1 {[%clk 0:00:02]} 36. Rxe1 {[%clk 0:00:12]}  Rc8 {[%clk 0:00:02]} 37. Bxa5 {[%clk 0:00:12]}  Nxd5 {[%clk 0:00:02]} 38. cxd5 {[%clk 0:00:12]}  Rc5 {[%clk 0:00:03]} 39. Bb6 {[%clk 0:00:07]}  Rxd5 {[%clk 0:00:03]} 40. a5 {[%clk 0:00:08]}  Bd3 {[%clk 0:00:02]} 41. Rd1 {[%clk 0:00:07]}  Bc4 {[%clk 0:00:01]} 42. Rc1 {[%clk 0:00:08]}  Ba6 {[%clk 0:00:01]} 43. Rc7 {[%clk 0:00:08]}  Rd2 {[%clk 0:00:01]} 44. Ra7 {[%clk 0:00:08]}  Bf1 {[%clk 0:00:01]} 45. Ra8+ {[%clk 0:00:09]}  Kh7 {[%clk 0:00:01]} 46. Rf8 {[%clk 0:00:09]} 1-0


[Site "https://www.chess.com"]

[Event "Titled Tuesday Blitz August 3 2021"]
[White "Kovalev, Egor"]
[Black "Odegov, Artem"]
[WhiteFideId "24124117"]
[BlackFideId "34183644"]
[WhiteElo "2253"]
[BlackElo "2288"]
[Result "1-0"]
[Round "04"]
[TimeControl "180+1"]
[Date "2021.08.03"]
[WhiteClock "0:00:06"]
[BlackClock "0:00:14"]

1. e4 {[%clk 0:03:00]}  e6 {[%clk 0:02:54]} 2. d4 {[%clk 0:03:01]}  d5 {[%clk 0:02:54]} 3. Nd2 {[%clk 0:03:02]}  Nf6 {[%clk 0:02:54]} 4. e5 {[%clk 0:03:01]}  Nfd7 {[%clk 0:02:55]} 5. Bd3 {[%clk 0:03:02]}  c5 {[%clk 0:02:55]} 6. c3 {[%clk 0:03:02]}  Nc6 {[%clk 0:02:55]} 7. Ngf3 {[%clk 0:03:03]}  cxd4 {[%clk 0:02:55]} 8. cxd4 {[%clk 0:03:03]}  Qb6 {[%clk 0:02:56]} 9. O-O {[%clk 0:03:03]}  Nxd4 {[%clk 0:02:55]} 10. Nxd4 {[%clk 0:03:03]}  Qxd4 {[%clk 0:02:56]} 11. Nf3 {[%clk 0:03:03]}  Qb6 {[%clk 0:02:57]} 12. Qa4 {[%clk 0:02:56]}  Qd8 {[%clk 0:02:54]} 13. Qg4 {[%clk 0:02:45]}  a6 {[%clk 0:02:50]} 14. Bd2 {[%clk 0:02:32]}  Nc5 {[%clk 0:02:46]} 15. Bc2 {[%clk 0:02:26]}  Bd7 {[%clk 0:02:45]} 16. a4 {[%clk 0:02:19]}  h5 {[%clk 0:02:41]} 17. Qg3 {[%clk 0:02:10]}  Rc8 {[%clk 0:02:30]} 18. Rfd1 {[%clk 0:02:01]}  h4 {[%clk 0:02:27]} 19. Qg4 {[%clk 0:02:01]}  Bc6 {[%clk 0:02:14]} 20. b4 {[%clk 0:01:54]}  Ne4 {[%clk 0:02:08]} 21. Ng5 {[%clk 0:01:15]}  Nxg5 {[%clk 0:01:59]} 22. Bxg5 {[%clk 0:01:16]}  Be7 {[%clk 0:02:00]} 23. Bxe7 {[%clk 0:00:57]}  Qxe7 {[%clk 0:02:00]} 24. Qxg7 {[%clk 0:00:58]}  Qf8 {[%clk 0:02:00]} 25. Qg4 {[%clk 0:00:51]}  Bd7 {[%clk 0:01:45]} 26. Bd3 {[%clk 0:00:50]}  Qh6 {[%clk 0:01:29]} 27. b5 {[%clk 0:00:48]}  a5 {[%clk 0:01:28]} 28. Be2 {[%clk 0:00:33]}  Ke7 {[%clk 0:01:26]} 29. Bf3 {[%clk 0:00:33]}  Rc4 {[%clk 0:01:20]} 30. Rd4 {[%clk 0:00:29]}  Rhc8 {[%clk 0:01:17]} 31. Rad1 {[%clk 0:00:27]}  b6 {[%clk 0:01:07]} 32. h3 {[%clk 0:00:27]}  Rc3 {[%clk 0:00:48]} 33. R4d3 {[%clk 0:00:22]}  R8c4 {[%clk 0:00:42]} 34. Rxc3 {[%clk 0:00:16]}  Rxc3 {[%clk 0:00:36]} 35. Qg8 {[%clk 0:00:16]}  Be8 {[%clk 0:00:30]} 36. Qg4 {[%clk 0:00:16]}  Rc4 {[%clk 0:00:29]} 37. Rd4 {[%clk 0:00:16]}  Qc1+ {[%clk 0:00:06]} 38. Kh2 {[%clk 0:00:17]}  Kd7 {[%clk 0:00:05]} 39. Qxh4 {[%clk 0:00:15]}  Rxd4 {[%clk 0:00:04]} 40. Qxd4 {[%clk 0:00:15]}  Qc5 {[%clk 0:00:05]} 41. Qd1 {[%clk 0:00:13]}  Kc7 {[%clk 0:00:04]} 42. Qd2 {[%clk 0:00:11]}  Qc4 {[%clk 0:00:04]} 43. Bd1 {[%clk 0:00:10]}  d4 {[%clk 0:00:04]} 44. g4 {[%clk 0:00:09]}  Bd7 {[%clk 0:00:04]} 45. h4 {[%clk 0:00:09]}  Bc8 {[%clk 0:00:03]} 46. h5 {[%clk 0:00:09]}  Kb8 {[%clk 0:00:03]} 47. h6 {[%clk 0:00:09]}  Qd5 {[%clk 0:00:01]} 48. h7 {[%clk 0:00:09]}  Qd8 {[%clk 0:00:02]} 49. Qh6 {[%clk 0:00:09]}  Qh8 {[%clk 0:00:01]} 50. Bf3 {[%clk 0:00:07]}  Bb7 {[%clk 0:00:01]} 51. Bxb7 {[%clk 0:00:07]}  Kxb7 {[%clk 0:00:02]} 52. Qf6 {[%clk 0:00:08]}  Qxh7+ {[%clk 0:00:02]} 53. Kg3 {[%clk 0:00:08]}  Qg6 {[%clk 0:00:03]} 54. Qxg6 {[%clk 0:00:07]}  fxg6 {[%clk 0:00:04]} 55. Kf4 {[%clk 0:00:08]}  g5+ {[%clk 0:00:04]} 56. Ke4 {[%clk 0:00:08]}  Kc7 {[%clk 0:00:04]} 57. Kxd4 {[%clk 0:00:09]}  Kd7 {[%clk 0:00:05]} 58. Ke4 {[%clk 0:00:09]}  Ke7 {[%clk 0:00:06]} 59. f4 {[%clk 0:00:09]}  Kf7 {[%clk 0:00:06]} 60. f5 {[%clk 0:00:09]}  Ke7 {[%clk 0:00:05]} 61. fxe6 {[%clk 0:00:09]}  Kxe6 {[%clk 0:00:05]} 62. Kd4 {[%clk 0:00:09]}  Ke7 {[%clk 0:00:05]} 63. Kd5 {[%clk 0:00:09]}  Kd7 {[%clk 0:00:06]} 64. e6+ {[%clk 0:00:10]}  Ke7 {[%clk 0:00:07]} 65. Ke5 {[%clk 0:00:10]}  Kf8 {[%clk 0:00:07]} 66. Kf6 {[%clk 0:00:10]}  Ke8 {[%clk 0:00:07]} 67. e7 {[%clk 0:00:11]}  Kd7 {[%clk 0:00:08]} 68. Kf7 {[%clk 0:00:12]}  Kc7 {[%clk 0:00:09]} 69. e8=Q {[%clk 0:00:12]}  Kd6 {[%clk 0:00:09]} 70. Qc6+ {[%clk 0:00:11]}  Ke5 {[%clk 0:00:10]} 71. Qxb6 {[%clk 0:00:11]}  Kf4 {[%clk 0:00:10]} 72. Qd4+ {[%clk 0:00:11]}  Kg3 {[%clk 0:00:10]} 73. Kg6 {[%clk 0:00:11]}  Kh4 {[%clk 0:00:11]} 74. Kf5 {[%clk 0:00:10]}  Kg3 {[%clk 0:00:11]} 75. b6 {[%clk 0:00:09]}  Kh3 {[%clk 0:00:11]} 76. b7 {[%clk 0:00:08]}  Kh4 {[%clk 0:00:12]} 77. Qf2+ {[%clk 0:00:06]}  Kh3 {[%clk 0:00:12]} 78. Qf1+ {[%clk 0:00:06]}  Kh4 {[%clk 0:00:12]} 79. Qh1+ {[%clk 0:00:06]}  Kg3 {[%clk 0:00:13]} 80. b8=Q+ {[%clk 0:00:06]}  Kf2 {[%clk 0:00:14]} 81. Qb2+ {[%clk 0:00:05]}  Ke3 {[%clk 0:00:14]} 82. Qe4# {[%clk 0:00:06]} 1-0


[Site "https://www.chess.com"]

[Event "Titled Tuesday Blitz August 3 2021"]
[White "Labussiere, Victor"]
[Black "Quparadze, Giga"]
[WhiteFideId "2183129"]
[BlackFideId "13602250"]
[WhiteElo "2323"]
[BlackElo "3009"]
[Result "0-1"]
[Round "04"]
[TimeControl "180+1"]
[Date "2021.08.03"]
[WhiteClock "0:00:24"]
[BlackClock "0:01:20"]

1. e4 {[%clk 0:03:00]}  c5 {[%clk 0:02:59]} 2. Nf3 {[%clk 0:03:00]}  e6 {[%clk 0:03:00]} 3. c3 {[%clk 0:02:58]}  d5 {[%clk 0:03:00]} 4. exd5 {[%clk 0:02:59]}  Qxd5 {[%clk 0:03:00]} 5. d4 {[%clk 0:02:59]}  Nc6 {[%clk 0:03:01]} 6. Na3 {[%clk 0:02:58]}  Nf6 {[%clk 0:03:00]} 7. Nb5 {[%clk 0:02:57]}  Qd8 {[%clk 0:03:01]} 8. dxc5 {[%clk 0:02:55]}  Bxc5 {[%clk 0:03:00]} 9. Qxd8+ {[%clk 0:02:38]}  Kxd8 {[%clk 0:03:01]} 10. Bf4 {[%clk 0:02:38]}  Ne4 {[%clk 0:02:39]} 11. Nbd4 {[%clk 0:01:52]}  Nxd4 {[%clk 0:02:31]} 12. cxd4 {[%clk 0:01:47]}  Bb4+ {[%clk 0:02:27]} 13. Nd2 {[%clk 0:01:42]}  Ke7 {[%clk 0:02:21]} 14. Bd3 {[%clk 0:01:35]}  Nxd2 {[%clk 0:02:18]} 15. Bxd2 {[%clk 0:01:36]}  Bxd2+ {[%clk 0:02:18]} 16. Kxd2 {[%clk 0:01:36]}  Bd7 {[%clk 0:02:18]} 17. Be4 {[%clk 0:01:33]}  Rac8 {[%clk 0:02:18]} 18. Rhc1 {[%clk 0:01:31]}  b6 {[%clk 0:02:17]} 19. Rxc8 {[%clk 0:01:28]}  Rxc8 {[%clk 0:02:11]} 20. Rc1 {[%clk 0:01:29]}  Rxc1 {[%clk 0:02:11]} 21. Kxc1 {[%clk 0:01:29]}  h6 {[%clk 0:02:10]} 22. Kd2 {[%clk 0:01:30]}  Kd6 {[%clk 0:02:11]} 23. f4 {[%clk 0:01:26]}  Bb5 {[%clk 0:02:08]} 24. Ke3 {[%clk 0:01:25]}  Bc4 {[%clk 0:02:09]} 25. a3 {[%clk 0:01:24]}  Bd5 {[%clk 0:02:09]} 26. g3 {[%clk 0:01:24]}  Bxe4 {[%clk 0:02:04]} 27. Kxe4 {[%clk 0:01:23]}  f5+ {[%clk 0:02:04]} 28. Ke3 {[%clk 0:01:22]}  Kd5 {[%clk 0:02:03]} 29. b3 {[%clk 0:01:21]}  b5 {[%clk 0:01:56]} 30. h4 {[%clk 0:01:14]}  g6 {[%clk 0:01:49]} 31. Kd3 {[%clk 0:01:12]}  a5 {[%clk 0:01:48]} 32. a4 {[%clk 0:00:47]}  bxa4 {[%clk 0:01:46]} 33. bxa4 {[%clk 0:00:47]}  h5 {[%clk 0:01:45]} 34. Kc3 {[%clk 0:00:48]}  Ke4 {[%clk 0:01:35]} 35. Kc4 {[%clk 0:00:48]}  Kf3 {[%clk 0:01:36]} 36. Kb5 {[%clk 0:00:44]}  Kxg3 {[%clk 0:01:36]} 37. Kxa5 {[%clk 0:00:44]}  Kxf4 {[%clk 0:01:36]} 38. Kb6 {[%clk 0:00:40]}  Ke3 {[%clk 0:01:29]} 39. a5 {[%clk 0:00:40]}  f4 {[%clk 0:01:29]} 40. a6 {[%clk 0:00:41]}  f3 {[%clk 0:01:30]} 41. a7 {[%clk 0:00:42]}  f2 {[%clk 0:01:30]} 42. a8=Q {[%clk 0:00:42]}  f1=Q {[%clk 0:01:30]} 43. Qe8 {[%clk 0:00:27]}  Qf5 {[%clk 0:01:26]} 44. Qd8 {[%clk 0:00:24]}  Qd5 {[%clk 0:01:20]} 45. Qxd5 {[%clk 0:00:24]}  exd5 {[%clk 0:01:20]} 0-1


[Site "https://www.chess.com"]